[Event "French-ch U16-U18 2024"]
[Site "Agen"]
[Date "2024.04.16"]
[Round "4.1"]
[White "Pereira-Davoine, Alana"]
[Black "Famel, Diane"]
[Result "1-0"]
[ECO "E73"]
[WhiteElo "1780"]
[BlackElo "1888"]
[Annotator "NA RC"]
[PlyCount "117"]
[EventDate "2024.04.14"]
[EventType "swiss"]
[EventCountry "FRA"]
[SourceTitle "playchess.com"]
[Source "ChessBase"]
[SourceQuality "1"]
[TimeControl "5400+30"]

1. d4 {[%emt 0:00:02]} Nf6 {[%emt 0:03:06]} 2. c4 {[%emt 0:00:06]} g6 {[%emt 0:00:13]} 3. Nc3 {[%emt 0:00:05]} Bg7 {[%emt 0:00:06]} 4. e4 {[%emt 0:00:11]} d6 {[%emt 0:00:08]} 5. Be2 {[%emt 0:00:09]} O-O {[%emt 0:00:08]} 6. h4 {[%emt 0:00:05]} e5 {[%emt 0:17:48]} 7. d5 {[%emt 0:00:18]} c6 {[%emt 0:03:17]} 8. h5 {[%emt 0:01:29]} cxd5 {[%emt 0:01:49]} 9. cxd5 {[%emt 0:00:18]} Nbd7 {[%emt 0:00:59]} 10. h6 {[%emt 0:00:36]} Bh8 {[%emt 0:00:21]} 11. Bg5 {[%emt 0:03:13]} Qa5 {[%emt 0:00:46]} 12. Qd2 {[%emt 0:04:57]} Qb4 {[%emt 0:01:13]} 13. a3 {[%emt 0:12:22]} Qd4 {[%emt 0:03:08]} 14. Nf3 {[%emt 0:02:22]} Qxd2+ {[%emt 0:01:40]} 15. Nxd2 {[%emt 0:00:17]} Nb6 {[%emt 0:08:19]} 16. a4 {[%emt 0:01:22]} a5 {[%emt 0:00:05]} 17. Be3 {[%emt 0:00:19]} Nfd7 {[%emt 0:12:36]} 18. Nb5 {[%emt 0:02:41]} f5 {[%emt 0:00:50]} 19. f3 {[%emt 0:00:55]} Bf6 {[%emt 0:06:48]} 20. Nxd6 {[%emt 0:01:09]} Be7 {[%emt 0:00:04]} 21. Nb5 {[%emt 0:02:22]} fxe4 {[%emt 0:04:23]} 22. d6 {[%emt 0:02:36]} Bd8 {[%emt 0:01:57]} 23. Nxe4 {[%emt 0:00:31]} Nf6 {[%emt 0:03:27]} 24. Nxf6+ {[%emt 0:02:23]} Rxf6 {[%emt 0:00:08]} 25. Rd1 {[%emt 0:03:44]} Be6 {[%emt 0:03:49]} 26. Nc7 {[%emt 0:00:37]} Bxc7 {[%emt 0:00:18]} 27. dxc7 {[%emt 0:00:06]} Nd5 {[%emt 0:01:13]} 28. Bc4 {[%emt 0:04:57]} Nxc7 {[%emt 0:04:07]} 29. Rd6 {[%emt 0:00:31]} Bxc4 {[%emt 0:03:59]} 30. Rxf6 {[%emt 0:01:00]} Nd5 {[%emt 0:00:01]} 31. Rd6 {[%emt 0:02:19]} Nxe3 {[%emt 0:00:16]} 32. Kf2 {[%emt 0:00:37]} Nf5 {[%emt 0:01:58]} 33. Rd7 {[%emt 0:01:17]} Bb3 {[%emt 0:03:19]} 34. Rxb7 {[%emt 0:01:37]} Bxa4 {[%emt 0:00:02]} 35. Re1 {[%emt 0:03:58]} Nd6 {[%emt 0:02:22]} 36. Rg7+ {[%emt 0:01:07]} Kh8 {[%emt 0:01:12]} 37. Rxe5 {[%emt 0:00:55]} Nf5 {[%emt 0:01:00]} 38. Rb7 {[%emt 0:03:13]} Be8 {[%emt 0:04:47]} 39. g4 {[%emt 0:05:15]} Nxh6 {[%emt 0:00:26]} 40. Ree7 {[%emt 0:01:47]} Nf7 {[%emt 0:00:09]} 41. Kg3 {[%emt 0:02:44]} Kg8 {[%emt 0:00:44]} 42. Ra7 {[%emt 0:04:44]} Rxa7 {[%emt 0:01:05]} 43. Rxa7 {[%emt 0:00:04]} a4 {[%emt 0:00:15]} 44. f4 {[%emt 0:02:07]} Nd6 {[%emt 0:03:05]} 45. Kh4 {[%emt 0:03:53]} Nc4 {[%emt 0:04:19]} 46. Rb7 {[%emt 0:09:11]} Ne3 {[%emt 0:00:17]} 47. Re7 {[%emt 0:01:42]} Nc4 {[%emt 0:00:36]} 48. Rxe8+ {[%emt 0:01:11]} Kf7 {[%emt 0:00:00]} 49. Rb8 {[%emt 0:00:26]} a3 {[%emt 0:01:40]} 50. bxa3 {[%emt 0:00:10]} Nxa3 {[%emt 0:00:01]} 51. Rb7+ {[%emt 0:00:19]} Kg8 {[%emt 0:00:49]} 52. Kg5 {[%emt 0:00:11]} Nc2 {[%emt 0:00:44]} 53. Kf6 {[%emt 0:00:17]} h5 {[%emt 0:00:03]} 54. Kxg6 {[%emt 0:00:10]} Kf8 {[%emt 0:00:18]} 55. gxh5 {[%emt 0:00:19]} Ne3 {[%emt 0:00:23]} 56. h6 {[%emt 0:00:21]} Nd5 {[%emt 0:00:18]} 57. h7 {[%emt 0:00:10]} Nxf4+ {[%emt 0:00:02]} 58. Kf5 {[%emt 0:00:21]} Ng6 {[%emt 0:00:13]} 59. Kxg6 {[%emt 0:00:07]} 1-0

[Event "French-ch U16-U18 2024"]
[Site "Agen"]
[Date "2024.04.16"]
[Round "4.2"]
[White "Paralieu, Emma"]
[Black "Lavilledieu, Lily-Mei"]
[Result "1-0"]
[ECO "B10"]
[WhiteElo "1775"]
[BlackElo "1783"]
[Annotator "NA RC"]
[PlyCount "81"]
[EventDate "2024.04.14"]
[EventType "swiss"]
[EventCountry "FRA"]
[SourceTitle "playchess.com"]
[Source "ChessBase"]
[SourceQuality "1"]
[TimeControl "5400+30"]

1. e4 {[%emt 0:00:04]} c6 {[%emt 0:00:51]} 2. Nf3 {[%emt 0:00:33]} d5 {[%emt 0:00:27]} 3. d3 {[%emt 0:00:33]} Bg4 {[%emt 0:01:18]} 4. h3 {[%emt 0:00:59]} Bxf3 {[%emt 0:00:34]} 5. Qxf3 {[%emt 0:00:39]} e6 {[%emt 0:00:08]} 6. g3 {[%emt 0:00:51]} Nf6 {[%emt 0:01:27]} 7. Bg2 {[%emt 0:00:10]} Be7 {[%emt 0:02:46]} 8. O-O {[%emt 0:00:51]} Qb6 {[%emt 0:08:25]} 9. Qe2 {[%emt 0:06:07]} O-O {[%emt 0:15:24]} 10. c4 {[%emt 0:07:34]} Rd8 {[%emt 0:15:05]} 11. Nd2 {[%emt 0:29:18]} dxe4 {[%emt 0:08:43]} 12. dxe4 {[%emt 0:08:29]} c5 {[%emt 0:01:26]} 13. Nf3 {[%emt 0:05:07]} Nc6 {[%emt 0:03:23]} 14. e5 {[%emt 0:04:02]} Nd7 {[%emt 0:00:54]} 15. Qe4 {[%emt 0:00:56]} Qc7 {[%emt 0:11:20]} 16. Re1 {[%emt 0:05:05]} Nf8 {[%emt 0:01:36]} 17. h4 {[%emt 0:04:30]} Rd7 {[%emt 0:06:59]} 18. h5 {[%emt 0:02:28]} Nd4 {[%emt 0:02:57]} 19. h6 {[%emt 0:08:39]} g6 {[%emt 0:01:43]} 20. Be3 {[%emt 0:06:46]} Rad8 {[%emt 0:06:16]} 21. Bxd4 {[%emt 0:00:48]} cxd4 {[%emt 0:00:27]} 22. b3 {[%emt 0:00:25]} Bb4 {[%emt 0:01:49]} 23. Red1 {[%emt 0:01:13]} Bc3 {[%emt 0:00:28]} 24. Rac1 {[%emt 0:00:31]} Qa5 {[%emt 0:00:12]} 25. Qf4 {[%emt 0:00:50]} f5 {[%emt 0:07:26]} 26. exf6 {[%emt 0:00:46]} Re8 {[%emt 0:00:39]} 27. Ne5 {[%emt 0:00:14]} Rf7 {[%emt 0:00:17]} 28. Nxf7 {[%emt 0:00:17]} Kxf7 {[%emt 0:00:04]} 29. Bxb7 {[%emt 0:02:12]} e5 {[%emt 0:00:50]} 30. Qe4 {[%emt 0:00:31]} Qc7 {[%emt 0:00:20]} 31. Bc6 {[%emt 0:01:17]} Rd8 {[%emt 0:00:32]} 32. Bd5+ {[%emt 0:00:47]} Kxf6 {[%emt 0:00:51]} 33. Rd3 {[%emt 0:00:19]} Ke7 {[%emt 0:00:41]} 34. Rf3 {[%emt 0:00:06]} Kd6 {[%emt 0:00:25]} 35. Rf6+ {[%emt 0:00:05]} Kc5 {[%emt 0:00:41]} 36. Rc6+ {[%emt 0:00:11]} Qxc6 {[%emt 0:00:06]} 37. Bxc6 {[%emt 0:00:04]} Bd2 {[%emt 0:00:43]} 38. Rd1 {[%emt 0:00:34]} Bxh6 {[%emt 0:00:18]} 39. Bb5 {[%emt 0:00:30]} Bg7 {[%emt 0:00:35]} 40. a3 {[%emt 0:00:29]} Rd6 {[%emt 0:00:26]} 41. Qb7 {[%emt 0:00:14]} 1-0

[Event "French-ch U16-U18 2024"]
[Site "Agen"]
[Date "2024.04.16"]
[Round "4.3"]
[White "Bat, Anu"]
[Black "Sumarriva Paulin, Jade"]
[Result "1-0"]
[ECO "C45"]
[WhiteElo "1887"]
[BlackElo "1780"]
[Annotator "NA RC"]
[PlyCount "45"]
[EventDate "2024.04.14"]
[EventType "swiss"]
[EventCountry "FRA"]
[SourceTitle "playchess.com"]
[Source "ChessBase"]
[SourceQuality "1"]
[TimeControl "5400+30"]

1. e4 {[%emt 0:00:05]} e5 {[%emt 0:02:40]} 2. Nf3 {[%emt 0:00:10]} Nc6 {[%emt 0:00:04]} 3. d4 {[%emt 0:00:08]} exd4 {[%emt 0:00:18]} 4. Nxd4 {[%emt 0:00:07]} Bc5 {[%emt 0:00:16]} 5. Nb3 {[%emt 0:00:07]} Bb6 {[%emt 0:00:37]} 6. Nc3 {[%emt 0:00:08]} Nf6 {[%emt 0:00:23]} 7. Qe2 {[%emt 0:00:21]} d6 {[%emt 0:01:50]} 8. Be3 {[%emt 0:00:11]} Qe7 {[%emt 0:06:50]} 9. O-O-O {[%emt 0:04:40]} Be6 {[%emt 0:06:42]} 10. g3 {[%emt 0:01:18]} O-O-O {[%emt 0:07:19]} 11. Bg2 {[%emt 0:00:09]} Ne5 {[%emt 0:05:18]} 12. Bxb6 {[%emt 0:17:03]} Bc4 {[%emt 0:15:38]} 13. Qd2 {[%emt 0:02:27]} axb6 {[%emt 0:02:26]} 14. f4 {[%emt 0:01:08]} Nc6 {[%emt 0:13:07]} 15. Nd4 {[%emt 0:08:04]} Nxd4 {[%emt 0:15:50]} 16. Qxd4 {[%emt 0:00:10]} Be6 {[%emt 0:01:02]} 17. e5 {[%emt 0:07:13]} Nd7 {[%emt 0:10:29]} 18. exd6 {[%emt 0:02:19]} cxd6 {[%emt 0:02:04]} 19. Nb5 {[%emt 0:10:22]} d5 {[%emt 0:02:07]} 20. f5 {[%emt 0:04:24]} Bxf5 {[%emt 0:01:54]} 21. Qf4 {[%emt 0:01:47]} Nf6 {[%emt 0:02:13]} 22. Qxf5+ {[%emt 0:01:03]} Kb8 {[%emt 0:00:24]} 23. Qf4+ {[%emt 0:00:20]} 1-0

[Event "French-ch U16-U18 2024"]
[Site "Agen"]
[Date "2024.04.16"]
[Round "4.4"]
[White "Chevillon, Manon"]
[Black "Grisoni, Emma"]
[Result "1/2-1/2"]
[ECO "B79"]
[WhiteElo "1737"]
[BlackElo "1704"]
[Annotator "NA RC"]
[PlyCount "166"]
[EventDate "2024.04.14"]
[EventType "swiss"]
[EventCountry "FRA"]
[SourceTitle "playchess.com"]
[Source "ChessBase"]
[SourceQuality "1"]
[TimeControl "5400+30"]

1. e4 {[%emt 0:00:11]} c5 {[%emt 0:00:06]} 2. Nf3 {[%emt 0:00:28]} d6 {[%emt 0:00:18]} 3. d4 {[%emt 0:00:21]} cxd4 {[%emt 0:00:05]} 4. Nxd4 {[%emt 0:00:22]} Nf6 {[%emt 0:00:16]} 5. Nc3 {[%emt 0:00:40]} g6 {[%emt 0:00:45]} 6. Be3 {[%emt 0:01:06]} Bg7 {[%emt 0:00:10]} 7. f3 {[%emt 0:01:23]} O-O {[%emt 0:00:26]} 8. Qd2 {[%emt 0:00:47]} Nc6 {[%emt 0:00:39]} 9. Be2 {[%emt 0:03:43]} Nxd4 {[%emt 0:04:21]} 10. Bxd4 {[%emt 0:00:27]} Be6 {[%emt 0:00:09]} 11. O-O-O {[%emt 0:03:05]} Qa5 {[%emt 0:00:46]} 12. Kb1 {[%emt 0:07:50]} Rfc8 {[%emt 0:00:12]} 13. a3 {[%emt 0:03:07]} Rab8 {[%emt 0:01:47]} 14. Nd5 {[%emt 0:12:42]} Qxd2 {[%emt 0:00:18]} 15. Rxd2 {[%emt 0:02:36]} Nxd5 {[%emt 0:02:45]} 16. Bxg7 {[%emt 0:02:28]} Kxg7 {[%emt 0:00:34]} 17. exd5 {[%emt 0:00:10]} Bd7 {[%emt 0:01:11]} 18. Re1 {[%emt 0:02:50]} Rc7 {[%emt 0:02:20]} 19. c3 {[%emt 0:04:35]} b5 {[%emt 0:03:23]} 20. Bd3 {[%emt 0:07:41]} Kf8 {[%emt 0:04:12]} 21. Rc1 {[%emt 0:11:20]} Rbc8 {[%emt 0:08:28]} 22. Rdc2 {[%emt 0:08:20]} Rc5 {[%emt 0:15:12]} 23. b4 {[%emt 0:07:45]} Rxd5 {[%emt 0:06:20]} 24. Be4 {[%emt 0:01:27]} Re5 {[%emt 0:00:17]} 25. Kb2 {[%emt 0:01:53]} d5 {[%emt 0:02:19]} 26. Bd3 {[%emt 0:01:09]} Re6 {[%emt 0:00:31]} 27. Rd2 {[%emt 0:01:21]} Rd6 {[%emt 0:00:38]} 28. Bf1 {[%emt 0:01:30]} Bc6 {[%emt 0:06:47]} 29. Re1 {[%emt 0:01:32]} Re8 {[%emt 0:01:50]} 30. f4 {[%emt 0:01:40]} Red8 {[%emt 0:04:13]} 31. Red1 {[%emt 0:02:28]} f6 {[%emt 0:01:27]} 32. Re2 {[%emt 0:01:19]} Re8 {[%emt 0:01:49]} 33. Rde1 {[%emt 0:01:14]} Kf7 {[%emt 0:00:07]} 34. g3 {[%emt 0:00:34]} Bd7 {[%emt 0:02:02]} 35. Re3 {[%emt 0:01:29]} a6 {[%emt 0:04:12]} 36. Bg2 {[%emt 0:01:43]} h6 {[%emt 0:00:16]} 37. h4 {[%emt 0:00:54]} Bg4 {[%emt 0:02:00]} 38. Rd3 {[%emt 0:00:48]} Red8 {[%emt 0:01:50]} 39. Bf3 {[%emt 0:02:34]} Bxf3 {[%emt 0:02:39]} 40. Rxf3 {[%emt 0:00:05]} d4 {[%emt 0:00:21]} 41. cxd4 {[%emt 0:00:33]} Rxd4 {[%emt 0:00:50]} 42. Ree3 {[%emt 0:01:04]} Rd2+ {[%emt 0:00:27]} 43. Kb3 {[%emt 0:00:57]} Rc8 {[%emt 0:02:47]} 44. Rc3 {[%emt 0:01:22]} Rcd8 {[%emt 0:03:26]} 45. Rfe3 {[%emt 0:00:42]} Rd1 {[%emt 0:00:57]} 46. Re2 {[%emt 0:00:41]} Rb1+ {[%emt 0:03:58]} 47. Kc2 {[%emt 0:00:22]} Rdd1 {[%emt 0:00:27]} 48. Rce3 {[%emt 0:00:33]} Rdc1+ {[%emt 0:00:27]} 49. Kd2 {[%emt 0:00:07]} Rc7 {[%emt 0:00:18]} 50. Kd3 {[%emt 0:00:57]} Rb3+ {[%emt 0:00:38]} 51. Kd2 {[%emt 0:00:25]} Rd7+ {[%emt 0:01:02]} 52. Kc2 {[%emt 0:00:08]} Rxe3 {[%emt 0:00:17]} 53. Rxe3 {[%emt 0:00:03]} Rd5 {[%emt 0:00:23]} 54. Rc3 {[%emt 0:01:15]} g5 {[%emt 0:04:59]} 55. hxg5 {[%emt 0:00:24]} hxg5 {[%emt 0:00:30]} 56. Rc6 {[%emt 0:00:43]} Rd6 {[%emt 0:00:12]} 57. Rc5 {[%emt 0:00:19]} gxf4 {[%emt 0:00:28]} 58. gxf4 {[%emt 0:00:09]} Rd4 {[%emt 0:01:17]} 59. f5 {[%emt 0:00:35]} Rd6 {[%emt 0:04:57]} 60. Kc3 {[%emt 0:00:59]} e6 {[%emt 0:00:30]} 61. Rc7+ {[%emt 0:00:28]} Ke8 {[%emt 0:00:12]} 62. fxe6 {[%emt 0:00:24]} Rxe6 {[%emt 0:00:12]} 63. Kd4 {[%emt 0:00:32]} Kd8 {[%emt 0:01:40]} 64. Rf7 {[%emt 0:00:35]} Ke8 {[%emt 0:00:25]} 65. Rc7 {[%emt 0:00:10]} f5 {[%emt 0:01:17]} 66. Rc5 {[%emt 0:00:38]} Re4+ {[%emt 0:01:49]} 67. Kd3 {[%emt 0:00:30]} Rf4 {[%emt 0:00:20]} 68. Ke3 {[%emt 0:00:25]} Rc4 {[%emt 0:00:41]} 69. Rxf5 {[%emt 0:00:41]} Rc3+ {[%emt 0:00:07]} 70. Kd4 {[%emt 0:00:22]} Rxa3 {[%emt 0:00:01]} 71. Kc5 {[%emt 0:00:34]} Ra4 {[%emt 0:01:23]} 72. Kb6 {[%emt 0:00:43]} Ke7 {[%emt 0:00:49]} 73. Rc5 {[%emt 0:00:25]} Kd6 {[%emt 0:00:38]} 74. Rc6+ {[%emt 0:00:31]} Kd5 {[%emt 0:00:28]} 75. Rc5+ {[%emt 0:00:34]} Kd4 {[%emt 0:00:13]} 76. Rc1 {[%emt 0:00:29]} Rxb4 {[%emt 0:00:37]} 77. Kxa6 {[%emt 0:00:16]} Rb2 {[%emt 0:00:22]} 78. Ka5 {[%emt 0:00:39]} b4 {[%emt 0:00:48]} 79. Ka4 {[%emt 0:00:32]} b3 {[%emt 0:00:31]} 80. Ka3 {[%emt 0:00:30]} Rc2 {[%emt 0:00:31]} 81. Rxc2 {[%emt 0:00:34]} bxc2 {[%emt 0:00:23]} 82. Kb2 {[%emt 0:00:15]} Kd3 {[%emt 0:00:28]} 83. Kc1 {[%emt 0:00:10]} Kc3 {[%emt 0:00:14]} 1/2-1/2

[Event "French-ch U16-U18 2024"]
[Site "Agen"]
[Date "2024.04.16"]
[Round "4.5"]
[White "Tran, Ky Lan"]
[Black "Fesigny, Oceane"]
[Result "0-1"]
[ECO "E09"]
[WhiteElo "1724"]
[BlackElo "1829"]
[Annotator "NA RC"]
[PlyCount "74"]
[EventDate "2024.04.14"]
[EventType "swiss"]
[EventCountry "FRA"]
[SourceTitle "playchess.com"]
[Source "ChessBase"]
[SourceQuality "1"]
[TimeControl "5400+30"]

1. d4 {[%emt 0:00:01]} d5 {[%emt 0:00:08]} 2. c4 {[%emt 0:00:20]} e6 {[%emt 0:00:09]} 3. g3 {[%emt 0:00:05]} Nf6 {[%emt 0:00:41]} 4. Bg2 {[%emt 0:00:06]} Be7 {[%emt 0:00:16]} 5. Nf3 {[%emt 0:00:10]} O-O {[%emt 0:00:28]} 6. O-O {[%emt 0:00:06]} Nbd7 {[%emt 0:01:32]} 7. Nc3 {[%emt 0:03:57]} c6 {[%emt 0:02:43]} 8. Qd3 {[%emt 0:01:48]} b6 {[%emt 0:02:20]} 9. e4 {[%emt 0:07:05]} dxe4 {[%emt 0:01:58]} 10. Nxe4 {[%emt 0:00:06]} Bb7 {[%emt 0:02:37]} 11. Rd1 {[%emt 0:06:57]} Nxe4 {[%emt 0:18:21]} 12. Qxe4 {[%emt 0:00:08]} Nf6 {[%emt 0:00:06]} 13. Qc2 {[%emt 0:00:10]} Qc8 {[%emt 0:00:34]} 14. c5 {[%emt 0:13:35]} Nd5 {[%emt 0:30:14]} 15. a3 {[%emt 0:14:15]} Bf6 {[%emt 0:17:13]} 16. Bg5 {[%emt 0:02:06]} Qc7 {[%emt 0:03:10]} 17. Bxf6 {[%emt 0:00:55]} gxf6 {[%emt 0:00:51]} 18. Rac1 {[%emt 0:13:03]} Rfd8 {[%emt 0:07:58]} 19. Qe4 {[%emt 0:07:12]} Qe7 {[%emt 0:02:45]} 20. Nh4 {[%emt 0:10:48]} Rd7 {[%emt 0:03:28]} 21. Re1 {[%emt 0:03:19]} Qf8 {[%emt 0:00:57]} 22. f4 {[%emt 0:04:15]} f5 {[%emt 0:00:48]} 23. Qe2 {[%emt 0:01:29]} Qg7 {[%emt 0:00:28]} 24. Nf3 {[%emt 0:00:36]} Ne7 {[%emt 0:01:30]} 25. Rcd1 {[%emt 0:02:07]} Rad8 {[%emt 0:00:34]} 26. Qf2 {[%emt 0:01:34]} bxc5 {[%emt 0:00:29]} 27. Qc2 {[%emt 0:01:54]} cxd4 {[%emt 0:00:54]} 28. Ne5 {[%emt 0:00:26]} Rd6 {[%emt 0:00:34]} 29. Nc4 {[%emt 0:00:24]} d3 {[%emt 0:00:31]} 30. Qf2 {[%emt 0:01:03]} Rd4 {[%emt 0:00:32]} 31. Ne5 {[%emt 0:01:31]} Ba8 {[%emt 0:00:32]} 32. Qd2 {[%emt 0:00:43]} c5 {[%emt 0:00:32]} 33. Rc1 {[%emt 0:00:42]} Bxg2 {[%emt 0:00:13]} 34. Kxg2 {[%emt 0:00:09]} Rc8 {[%emt 0:00:47]} 35. b3 {[%emt 0:04:55]} Ng6 {[%emt 0:00:33]} 36. Kh1 {[%emt 0:00:00]} Nxe5 {[%emt 0:00:03]} 37. Rxe5 {[%emt 0:00:00]} Qg4 {[%emt 0:00:45]} 0-1

[Event "French-ch U16-U18 2024"]
[Site "Agen"]
[Date "2024.04.16"]
[Round "4.6"]
[White "Lissillour, Baptiste"]
[Black "Kuhn, Clement"]
[Result "1/2-1/2"]
[ECO "E42"]
[WhiteElo "2130"]
[BlackElo "2349"]
[Annotator "ChessBase"]
[PlyCount "235"]
[EventDate "2024.04.14"]
[EventType "swiss"]
[EventCountry "FRA"]
[SourceTitle "playchess.com"]
[Source "ChessBase"]
[SourceQuality "1"]
[TimeControl "5400+30"]

1. d4 {[%emt 0:00:10]} Nf6 {[%emt 0:00:17]} 2. c4 {[%emt 0:00:10]} e6 {[%emt 0:00:27]} 3. Nc3 {[%emt 0:00:10]} Bb4 {[%emt 0:00:08]} 4. e3 {[%emt 0:00:05]} c5 {[%emt 0:00:13]} 5. Nge2 {[%emt 0:00:09]} cxd4 {[%emt 0:00:46]} 6. exd4 {[%emt 0:00:13]} d5 {[%emt 0:00:12]} 7. c5 {[%emt 0:00:43]} Ne4 {[%emt 0:01:24]} 8. a3 {[%emt 0:00:05]} Nxc3 {[%emt 0:04:15]} 9. Nxc3 {[%emt 0:00:07]} Bxc3+ {[%emt 0:00:10]} 10. bxc3 {[%emt 0:00:05]} Nc6 {[%emt 0:08:23]} 11. Bd3 {[%emt 0:06:19]} e5 {[%emt 0:09:57]} 12. O-O {[%emt 0:03:09]} e4 {[%emt 0:03:30]} 13. Bc2 {[%emt 0:06:02]} O-O {[%emt 0:04:25]} 14. f3 {[%emt 0:02:54]} Qa5 {[%emt 0:11:18]} 15. Bb2 {[%emt 0:21:38]} Bf5 {[%emt 0:03:42]} 16. c4 {[%emt 0:05:29]} dxc4 {[%emt 0:06:35]} 17. fxe4 {[%emt 0:02:50]} c3 {[%emt 0:01:44]} 18. Bc1 {[%emt 0:02:43]} Bg6 {[%emt 0:00:01]} 19. Bf4 {[%emt 0:14:32]} Rfe8 {[%emt 0:01:18]} 20. Re1 {[%emt 0:02:13]} b6 {[%emt 0:02:20]} 21. Bd6 {[%emt 0:08:50]} bxc5 {[%emt 0:00:06]} 22. dxc5 {[%emt 0:01:21]} Rad8 {[%emt 0:06:31]} 23. Bb3 {[%emt 0:02:35]} c2 {[%emt 0:15:03]} 24. Bxc2 {[%emt 0:01:57]} Re5 {[%emt 0:00:33]} 25. Qf3 {[%emt 0:06:55]} Nd4 {[%emt 0:01:58]} 26. Qf2 {[%emt 0:00:55]} Nxc2 {[%emt 0:01:14]} 27. Qxc2 {[%emt 0:00:01]} Rd5 {[%emt 0:02:33]} 28. Qc4 {[%emt 0:02:17]} Rd2 {[%emt 0:10:56]} 29. Qb4 {[%emt 0:02:08]} Qxb4 {[%emt 0:00:01]} 30. axb4 {[%emt 0:00:01]} Rb2 {[%emt 0:00:12]} 31. c6 {[%emt 0:02:01]} Rxd6 {[%emt 0:03:33]} 32. Rad1 {[%emt 0:04:31]} Kf8 {[%emt 0:02:05]} 33. Rxd6 {[%emt 0:00:36]} Ke7 {[%emt 0:00:00]} 34. Rc1 {[%emt 0:02:34]} Bxe4 {[%emt 0:00:35]} 35. c7 {[%emt 0:00:41]} Bb7 {[%emt 0:00:09]} 36. Rd8 {[%emt 0:00:11]} Rxg2+ {[%emt 0:00:14]} 37. Kf1 {[%emt 0:00:01]} Rxh2 {[%emt 0:00:22]} 38. c8=Q {[%emt 0:00:31]} Bxc8 {[%emt 0:00:01]} 39. Rdxc8 {[%emt 0:00:13]} Rb2 {[%emt 0:01:15]} 40. R8c4 {[%emt 0:01:13]} h5 {[%emt 0:00:59]} 41. Ra1 {[%emt 0:00:28]} g5 {[%emt 0:00:26]} 42. Rxa7+ {[%emt 0:00:19]} Kf6 {[%emt 0:00:04]} 43. Rc6+ {[%emt 0:00:45]} Kg7 {[%emt 0:01:17]} 44. Rc5 {[%emt 0:00:59]} Kg6 {[%emt 0:00:12]} 45. b5 {[%emt 0:00:20]} h4 {[%emt 0:00:01]} 46. Ra8 {[%emt 0:00:35]} f6 {[%emt 0:00:35]} 47. Rh8 {[%emt 0:00:36]} Kg7 {[%emt 0:00:17]} 48. Ra8 {[%emt 0:00:33]} Kg6 {[%emt 0:00:04]} 49. Ra6 {[%emt 0:00:28]} h3 {[%emt 0:00:54]} 50. Rcc6 {[%emt 0:00:32]} Rb1+ {[%emt 0:00:00]} 51. Kf2 {[%emt 0:00:18]} h2 {[%emt 0:00:05]} 52. Rxf6+ {[%emt 0:00:11]} Kg7 {[%emt 0:00:04]} 53. Rfc6 {[%emt 0:01:05]} Rf1+ {[%emt 0:00:05]} 54. Kxf1 {[%emt 0:00:20]} h1=Q+ {[%emt 0:00:01]} 55. Kf2 {[%emt 0:00:15]} Qh2+ {[%emt 0:00:22]} 56. Ke3 {[%emt 0:00:38]} Qe5+ {[%emt 0:00:15]} 57. Kd2 {[%emt 0:00:08]} Qb8 {[%emt 0:02:46]} 58. Kc3 {[%emt 0:00:46]} g4 {[%emt 0:00:13]} 59. Kb4 {[%emt 0:00:34]} g3 {[%emt 0:00:22]} 60. Rab6 {[%emt 0:00:46]} Qf8+ {[%emt 0:00:35]} 61. Ka4 {[%emt 0:00:31]} g2 {[%emt 0:01:06]} 62. Rg6+ {[%emt 0:00:29]} Kh7 {[%emt 0:00:05]} 63. Rxg2 {[%emt 0:00:34]} Qa8+ {[%emt 0:00:01]} 64. Ra6 {[%emt 0:00:02]} Qxg2 {[%emt 0:00:06]} 65. Ka5 {[%emt 0:00:36]} Qd2+ {[%emt 0:00:23]} 66. Kb6 {[%emt 0:00:11]} Qd6+ {[%emt 0:00:35]} 67. Kb7 {[%emt 0:01:12]} Qd7+ {[%emt 0:00:02]} 68. Kb6 {[%emt 0:00:07]} Kg6 {[%emt 0:00:09]} 69. Ra7 {[%emt 0:00:49]} Qd3 {[%emt 0:01:37]} 70. Rc7 {[%emt 0:00:32]} Kf6 {[%emt 0:00:09]} 71. Ka6 {[%emt 0:00:32]} Ke6 {[%emt 0:00:09]} 72. Rc5 {[%emt 0:00:26]} Qa3+ {[%emt 0:00:32]} 73. Kb6 {[%emt 0:00:02]} Qe3 {[%emt 0:00:10]} 74. Kc6 {[%emt 0:00:06]} Qd4 {[%emt 0:00:56]} 75. Rh5 {[%emt 0:01:06]} Qe4+ {[%emt 0:00:57]} 76. Kb6 {[%emt 0:00:21]} Qe3+ {[%emt 0:00:10]} 77. Ka6 {[%emt 0:00:12]} Kd6 {[%emt 0:00:16]} 78. Rh8 {[%emt 0:01:06]} Qa3+ {[%emt 0:01:32]} 79. Kb7 {[%emt 0:00:01]} Qf3+ {[%emt 0:00:15]} 80. Ka7 {[%emt 0:00:58]} Qf7+ {[%emt 0:00:40]} 81. Ka6 {[%emt 0:00:26]} Qa2+ {[%emt 0:00:12]} 82. Kb7 {[%emt 0:00:17]} Qd5+ {[%emt 0:01:08]} 83. Ka6 {[%emt 0:00:22]} Qa2+ {[%emt 0:01:55]} 84. Kb7 {[%emt 0:00:02]} Qg2+ {[%emt 0:00:10]} 85. Ka6 {[%emt 0:00:18]} Qg7 {[%emt 0:00:40]} 86. Rc8 {[%emt 0:01:13]} Qa1+ {[%emt 0:00:05]} 87. Kb7 {[%emt 0:00:31]} Qh1+ {[%emt 0:00:11]} 88. Rc6+ {[%emt 0:00:33]} Kd7 {[%emt 0:00:04]} 89. Ka7 {[%emt 0:00:37]} Qd5 {[%emt 0:00:17]} 90. Kb6 {[%emt 0:00:35]} Qd4+ {[%emt 0:00:03]} 91. Kb7 {[%emt 0:00:09]} Qa4 {[%emt 0:00:38]} 92. Rc7+ {[%emt 0:00:43]} Kd6 {[%emt 0:00:02]} 93. Rc6+ {[%emt 0:00:23]} Kd5 {[%emt 0:00:02]} 94. Kb6 {[%emt 0:00:14]} Qa8 {[%emt 0:00:14]} 95. Rc5+ {[%emt 0:00:39]} Kd4 {[%emt 0:00:04]} 96. Rc6 {[%emt 0:00:09]} Qb8+ {[%emt 0:00:07]} 97. Ka6 {[%emt 0:00:07]} Kd5 {[%emt 0:00:06]} 98. Rc2 {[%emt 0:01:11]} Qd6+ {[%emt 0:03:01]} 99. Rc6 {[%emt 0:00:21]} Qa3+ {[%emt 0:00:01]} 100. Kb6 {[%emt 0:00:37]} Qb4 {[%emt 0:00:16]} 101. Rc7 {[%emt 0:00:47]} Qf8 {[%emt 0:02:44]} 102. Rc6 {[%emt 0:00:20]} Qe7 {[%emt 0:00:29]} 103. Rc7 {[%emt 0:01:04]} Qe3+ {[%emt 0:00:31]} 104. Kb7 {[%emt 0:00:20]} Qe8 {[%emt 0:00:48]} 105. Rc6 {[%emt 0:00:27]} Qd7+ {[%emt 0:00:12]} 106. Kb6 {[%emt 0:00:12]} Qd8+ {[%emt 0:00:01]} 107. Ka6 {[%emt 0:00:35]} Qa8+ {[%emt 0:00:16]} 108. Kb6 {[%emt 0:00:02]} Qa3 {[%emt 0:00:04]} 109. Rc7 {[%emt 0:00:47]} Qa8 {[%emt 0:00:50]} 110. Rc6 {[%emt 0:00:30]} Qb8+ {[%emt 0:00:16]} 111. Ka6 {[%emt 0:00:07]} Kd4 {[%emt 0:00:07]} 112. Rc2 {[%emt 0:01:03]} Kd5 {[%emt 0:00:57]} 113. Rc6 {[%emt 0:00:08]} Qd8 {[%emt 0:00:09]} 114. Rc2 {[%emt 0:01:00]} Qh8 {[%emt 0:00:56]} 115. Rc6 {[%emt 0:00:34]} Qd4 {[%emt 0:00:10]} 116. Rc7 {[%emt 0:00:29]} Kd6 {[%emt 0:00:29]} 117. Rc6+ {[%emt 0:00:23]} Kd7 {[%emt 0:00:03]} 118. Kb7 {[%emt 0:00:08]} 1/2-1/2